Cogmind - Beta 13 @@@ ROGUE MODE // 2024.04.06 @ 03:59:17 Player: Copyrite Result: Destroyed by 5M-7BS(R) with Subdweller Laser Performance ------------- Evolutions (0) 0 Regions Visited (3) 600 Robots Destroyed (45) 225 Value Destroyed (651) 651 Prototype IDs (0) 0 Alien Tech Used (0) 0 Bonus (0) 0 TOTAL SCORE: 1476 Bonus ------- None Cogmind --------- Core Integrity 0/250 Matter 280/300 Energy 150/150 System Corruption 0% Temperature Cool (6) Movement Rolling (110) Location -10/Subcaves Parts ------- > --- POWER (1) -------- Light Angular Momentum Engine > --- PROPULSION (2) --- Subdweller Monowheel Subdweller Monowheel > --- UTILITY (2) ------ Improved Heat Sink Large Storage Unit > --- WEAPON (2) ------- Subdweller Laser Beamcaster > --- INVENTORY (15) --- Subdweller Power Source Subdweller Power Source Myomer Leg Subdweller Monowheel Small Storage Unit Improved Terrain Scanner Terrain Scan Processor Scrap Shield Recalibrator EM Pulse Gun Heavy Riot Gun Subdweller Shrapnel Launcher Scrap Shield Fragment (50) Scrap Shield Fragment (42) Peak State ------------ > --- POWER ------------ Light Angular Momentum Engine > --- PROPULSION ------- Subdweller Monowheel Subdweller Monowheel > --- UTILITY ---------- Large Storage Unit Recalibrator > --- WEAPON ----------- Subdweller Laser Beamcaster > --- INVENTORY -------- Subdweller Power Source Subdweller Power Source Subdweller Monowheel Improved Heat Sink Small Storage Unit Improved Terrain Scanner Terrain Scan Processor Scrap Shield EM Pulse Gun Heavy Riot Gun Subdweller Shrapnel Launcher Scrap Shield Fragment Scrap Shield Fragment [Rating: 24] Favorites ----------- Power Light Ion Engine Engine Light Ion Engine Propulsion Hover Unit Leg Aluminum Leg Wheel Subdweller Monowheel Hover Unit Hover Unit Flight Unit Flight Unit Utility Small Storage Unit Device Improved Heat Sink Storage Small Storage Unit Processor Signal Interpreter Weapon Particle Gun Energy Gun Particle Gun Energy Cannon Subdweller Beam Cannon Ballistic Gun Light Assault Rifle Launcher Grenade Launcher Build | -11 -10 -10 -10 ------- Run | Yrd Mat Min Sub Slots Evolved . | . . . . Power . | . . . . Propulsion . | . . . . Utility . | . . . . Weapon . | . . . . Parts Attached 52 | 8 14 12 18 Power 8 | 1 3 1 3 Engine 8 | 1 3 1 3 Core . | . . . . Reactor . | . . . . Propulsion 18 | 2 5 7 4 Treads . | . . . . Leg 3 | 2 1 . . Wheel 8 | . . 4 4 Hover 5 | . 4 1 . Flight 2 | . . 2 . Utility 13 | 2 5 . 6 Device 7 | 1 1 . 5 Storage 5 | 1 3 . 1 Processor 1 | . 1 . . Hackware . | . . . . Protection . | . . . . Artifact . | . . . . Weapon 13 | 3 1 4 5 Energy Gun 9 | 2 1 3 3 Energy Cannon 1 | . . . 1 Ballistic Gun 1 | 1 . . . Ballistic Cannon . | . . . . Launcher 2 | . . 1 1 Special Weapon . | . . . . Impact Weapon . | . . . . Slashing Weapon . | . . . . Piercing Weapon . | . . . . Special Melee Weapon . | . . . . Unidentified Prototypes . | . . . . Parts Lost 7 | . 3 1 3 Power 2 | . 2 . . Propulsion 2 | . . 1 1 Utility 1 | . . . 1 Weapon 2 | . 1 . 1 Highest Loss Streak 3 | . 1 1 3 To Critical Strikes . | . . . . Average Slot Usage (%) 89 | . 90 82 97 Engine 14 | . 14 14 14 Leg 4 | . 11 . . Wheel 11 | . . 8 27 Hover 9 | . 16 12 . Flight 1 | . . 3 . Device 5 | . 7 . 10 Storage 14 | . 14 14 14 Processor 7 | . 6 14 2 Energy Gun 17 | . 19 11 22 Launcher 1 | . . 2 2 Naked Turns . | . . . . Heaviest Build 39 | 13 28 13 39 Greatest Support 40 | 20 20 32 40 Greatest Overweight (x) 2 | . 2 2 1 Average Overweight (x) . | . . . . Largest Inventory Capacity 15 | 8 15 8 15 Average Capacity 9 | 7 8 8 14 Most Carried 15 | 5 8 8 15 Average Carried 8 | 3 6 7 11 Final Capacity 15 | 8 8 8 15 Final Carried 15 | 5 8 8 15 Class Distribution -------------------- 65% | Mutant 34% | Scavenger-Mutant Dominant Class ---------------- Mutant | -10/Materials Mutant | -10/Mines Scavenger-Mutant | -10/Subcaves Resources | -11 -10 -10 -10 ----------- Run | Yrd Mat Min Sub Matter Collected 700 | 280 130 135 155 Remotely . | . . . . Salvage Created 1420 | 232 585 456 147 Parts 106 | 23 42 24 17 Haulers Intercepted . | . . . . Recyclers Shooed 2 | . 1 1 . Parts Field Recycled . | . . . . Retrieved Matter . | . . . . Parts Self-Destructed 13 | . . . 13 Prevented . | . . . . Kills | -11 -10 -10 -10 ------- Run | Yrd Mat Min Sub Combat Hostiles Destroyed 20 | . 10 6 4 Guns 15 | . 10 3 2 Cannons 1 | . . . 1 AOE 3 | . . 3 . Classes Destroyed 9 | 3 5 . 1 Worker 5 | 2 1 2 . Builder 3 | . 2 1 . Tunneler 8 | 5 1 2 . Recycler 6 | 1 1 4 . Mechanic 1 | . 1 . . Watcher 2 | . 2 . . Swarmer 10 | . 3 6 1 Grunt 7 | . 7 . . Subdweller 3 | . . . 3 Best Kill Streak 5 | 3 5 4 2 Combat Bots Only 3 | . 3 3 2 Max Kills in Single Turn 2 | 1 1 2 1 Gunslinging . | . . . . Exploded 2 | . . 2 . Melee . | . . . . Uniques/NPCs Destroyed . | . . . . Combat | -11 -10 -10 -10 -------- Run | Yrd Mat Min Sub Hostile Shots Fired 154 | . 65 30 59 Missed 47 | . 12 11 24 Damage Taken 1349 | . 614 169 566 Core 259 | . 105 28 126 Absorbed by Shields . | . . . . Core Remaining (%) 100 | 100 . . . Volleys Fired 158 | 16 69 36 37 Largest 2 | 2 2 1 2 Hottest 135 | 80 80 65 135 Shots Fired 213 | 32 93 36 52 Gun 201 | 32 93 34 42 Cannon 9 | . . . 9 Launcher 3 | . . 2 1 Special . | . . . . Kinetic . | . . . . Thermal 210 | 32 93 34 51 Explosive 3 | . . 2 1 Electromagnetic . | . . . . Robot Hit Streak 10 | 5 8 10 5 Robot Miss Streak 5 | 2 4 5 3 Penetration Max . | . . . . Secondary Targets . | . . . . Shots Hit Robots 137 | 21 60 27 29 Core Hits 61 | 9 29 17 6 Critical Kills 1 | . . . 1 Critical Parts Destroyed . | . . . . Critical Strikes 5 | . 1 1 3 Burn 3 | . 1 1 1 Meltdown 1 | . . . 1 Destroy 1 | . . . 1 Melee Attacks . | . . . . Impact . | . . . . Slashing . | . . . . Piercing . | . . . . Sneak Attacks . | . . . . Combat Hostiles . | . . . . Follow-up Attacks . | . . . . Damage Inflicted 2306 | 251 775 578 702 Guns 1915 | 251 775 407 482 Cannons 220 | . . . 220 Explosions 171 | . . 171 . Melee . | . . . . Ramming . | . . . . Kinetic . | . . . . Thermal 2135 | 251 775 407 702 Explosive 171 | . . 171 . Electromagnetic . | . . . . Impact . | . . . . Slashing . | . . . . Piercing . | . . . . Highest Corruption . | . . . . Average Corruption . | . . . . Corruption Purged . | . . . . Corruption Blocked . | . . . . Overload Shots . | . . . . Overflow Damage . | . . . . Projectiles . | . . . . Explosions . | . . . . Melee . | . . . . Knockbacks . | . . . . Impact . | . . . . Kinetic . | . . . . Secondary . | . . . . Self-Inflicted Damage . | . . . . Shots . | . . . . Rammed . | . . . . Targets Rammed . | . . . . Kicked . | . . . . Crushed . | . . . . Highest Temperature 348 | 54 348 196 33 Average Temperature 87 | 20 134 57 13 Received Heat Transfer 501 | . 339 . 162 Effects 5 | . 5 . . Energy Bleed 3 | . 3 . . Interference 2 | . 2 . . Siege Activations . | . . . . Robots Corrupted . | . . . . Combat Hostiles . | . . . . Parts Fried . | . . . . Impact Corruptions . | . . . . Robots Melted 1 | . . . 1 Combat Hostiles 1 | . . . 1 Parts Melted 7 | . 2 3 2 Heat Transferred 4551 | 575 1851 1036 1089 Parts Sabotaged . | . . . . Parts Stolen . | . . . . Parts Stripped . | . . . . Power Chain Reactions . | . . . . Alert | -11 -10 -10 -10 ------- Run | Yrd Mat Min Sub Peak Influence 275 | 40 275 242 . Initial 75 | . 26 75 . Average 118 | 19 150 115 . Maximum Alert Level 1 | . 1 1 . Low Security (%) 90 | 100 88 90 . Level 1 9 | . 11 9 . Level 2 . | . . . . Level 3 . | . . . . Level 4 . | . . . . Level 5 . | . . . . High Security . | . . . . Max Security . | . . . . Squads Dispatched 2 | . 2 . . Investigation 1 | . 1 . . Extermination . | . . . . Reinforcement 1 | . 1 . . Assault . | . . . . Garrison . | . . . . Intercept . | . . . . Searches Triggered . | . . . . Construction Impeded . | . . . . Haulers Reinforced . | . . . . Active Scanning Responses . | . . . . Cargo Convoy Interrupts . | . . . . Stealth | -11 -10 -10 -10 --------- Run | Yrd Mat Min Sub Distress Signals 1 | . 1 . . Communications Jammed . | . . . . Distress Signals . | . . . . Times Spotted 51 | . 20 6 25 Peak Tracking Total 7 | . 4 3 7 Tactical Retreats 4 | . 2 . 2 Traps | -11 -10 -10 -10 ------- Run | Yrd Mat Min Sub Traps Triggered 1 | . . . 1 Indirectly . | . . . . Trap Hack Attempts . | . . . . Triggered . | . . . . Disarmed . | . . . . Reprogrammed . | . . . . Reused . | . . . . Traps Extracted . | . . . . Installed . | . . . . Triggered . | . . . . Machines | -11 -10 -10 -10 ---------- Run | Yrd Mat Min Sub Machines Disabled 1 | . . 1 . Max in Single Turn 1 | . . 1 . Machines Repaired . | . . . . Machines Dismantled . | . . . . Machines Sabotaged . | . . . . Overloaded Fab Kills . | . . . . Hacking | -11 -10 -10 -10 --------- Run | Yrd Mat Min Sub Machines Accessed 2 | . 2 . . Terminals 2 | . 2 . . Fabricators . | . . . . Repair Stations . | . . . . Recycling Units . | . . . . Scanalyzers . | . . . . Garrison Access . | . . . . Total Hacks 6 | . 6 . . Successful 3 | . 3 . . Failed 3 | . 3 . . Catastrophic . | . . . . Database Lockouts . | . . . . Manual 3 | . 3 . . Terminals 6 | . 6 . . Fabricators . | . . . . Repair Stations . | . . . . Recycling Units . | . . . . Scanalyzers . | . . . . Garrison Access . | . . . . Terminal Hacks 3 | . 3 . . Branch Access Points 1 | . 1 . . Locate Traps 1 | . 1 . . Investigation Status 1 | . 1 . . Fabricator Hacks . | . . . . Repair Station Hacks . | . . . . Recycling Unit Hacks . | . . . . Scanalyzer . | . . . . Garrison Access Hacks . | . . . . Unauthorized Hacks . | . . . . Terminals . | . . . . Fabricators . | . . . . Repair Stations . | . . . . Recycling Units . | . . . . Scanalyzers . | . . . . Garrison Access . | . . . . Data Cores Recovered . | . . . . Used . | . . . . Hacking Detections 2 | . 2 . . Full Trace Events 1 | . 1 . . Feedback Events . | . . . . Feedback Blocked . | . . . . Robot Schematics Acquired . | . . . . Robots Built . | . . . . Authchips . | . . . . Time . | . . . . Total Robot Build Rating . | . . . . Part Schematics Acquired . | . . . . Parts Built . | . . . . Authchips . | . . . . Time . | . . . . Total Part Build Rating . | . . . . Parts Repaired . | . . . . Time . | . . . . Parts Recycled . | . . . . Recycled Matter . | . . . . Retrieved Matter . | . . . . Retrieved Components . | . . . . Parts Scanalyzed . | . . . . Part Schematics Acquired . | . . . . Parts Damaged . | . . . . Bothacking | -11 -10 -10 -10 ------------ Run | Yrd Mat Min Sub Used RIF Installer . | . . . . Robots Hacked . | . . . . Non-combat . | . . . . Combat . | . . . . Robot Hacks Applied . | . . . . Relay Couplers Released . | . . . . Fabnet Peak Effective % . | . . . . Robots Rewired . | . . . . Allies Hacked . | . . . . Hacks Repelled . | . . . . Allies | -11 -10 -10 -10 -------- Run | Yrd Mat Min Sub Total Allies . | . . . . Largest Group . | . . . . Highest-Rated Group . | . . . . Highest-Rated Ally . | . . . . Total Orders . | . . . . Ally Attacks . | . . . . Total Damage . | . . . . Kills . | . . . . Allies Corrupted . | . . . . Allies Melted . | . . . . Intel | -11 -10 -10 -10 ------- Run | Yrd Mat Min Sub Robot Analysis Total . | . . . . Derelict Logs Recovered 1 | . . 1 . Drone Launches . | . . . . Drone Recoveries . | . . . . Exploration | -11 -10 -10 -10 ------------- Run | Yrd Mat Min Sub Turns Passed 2374 | 220 743 752 659 Spaces Moved 1881 | 130 454 825 472 Core 5 | 5 . . . Treads . | . . . . Legs 287 | 125 162 . . Wheels 755 | . . 283 472 Hover 754 | . 292 462 . Flight 80 | . . 80 . Fastest Speed 50 | 50 56 56 80 Average Speed 97 | 117 117 77 106 Slowest Speed 200 | 120 176 200 120 Overloaded Moves . | . . . . Propulsion Burnouts . | . . . . Robots Hopped . | . . . . Cave-ins Triggered . | . . . . Exploration Rate (%) 52 | 7 71 95 35 Regions Visited 3 Branch Regions 2 Pre-discovered Areas 1 | . . 1 . Known Exits Taken 2 | . 1 1 . Unknown Exits Taken 1 | 1 . . . Scrap Searched 4 | . . 2 2 Spaces Dug . | . . . . Terrain Destroyed 15 | . . 9 6 Melee . | . . . . Projectile . | . . . . AOE 15 | . . 9 6 Terrain Rammed . | . . . . Walls Destroyed . | . . . . Machines Disabled . | . . . . Actions | -11 -10 -10 -10 --------- Run | Yrd Mat Min Sub Total 2202 | 162 572 902 566 Wait 51 | 3 9 15 24 Move 1878 | 129 453 824 472 Hop . | . . . . Pick Up 33 | 6 13 5 9 Fast Attach 14 | 6 1 5 2 Attach 5 | 1 1 . 3 Detach . | . . . . Swap 33 | 1 12 7 13 Drop 30 | . 14 10 6 Fire 158 | 16 69 36 37 Melee . | . . . . Ram . | . . . . Kick . | . . . . Crush . | . . . . Escape Stasis . | . . . . Rewire . | . . . . Trap . | . . . . Miscellaneous . | . . . . Route ------- -11/Scrapyard -10/Materials -10/Mines (discovered 3 exits: *Mat x2 / *Sub) -10/Subcaves (discovered 1 exit: [*Rec]) History --------- Turn | Location | Event 5 | -11/Scrapyard | Discovered new exit (range 14) 221 | -11/Scrapyard | Entered Materials 317 | -10/Materials | Build established: Mutant 721 | -10/Materials | Identified exit to Mines 964 | -10/Materials | Entered Mines 1043 | -10/Mines | Learned location of Zion (-7) 1100 | -10/Mines | Discovered new exit (range 12) 1191 | -10/Mines | Discovered new exit (range 6) 1204 | -10/Mines | Identified exit to Materials 1289 | -10/Mines | Core integrity fell below 50% 1515 | -10/Mines | Discovered new exit (range 10) 1522 | -10/Mines | Identified exit to Subcaves 1716 | -10/Mines | Entered Subcaves 1824 | -10/Subcaves | Ambushed by swarm of Subdwellers 1870 | -10/Subcaves | Lost 3 parts (1n1u1w) 2038 | -10/Subcaves | Core integrity fell below 20% 2067 | -10/Subcaves | Ambushed by Subdwellers from Twisted Machinery 2140 | -10/Subcaves | Discovered new exit (range 14) 2154 | -10/Subcaves | Build established: Scavenger-Mutant 2375 | -10/Subcaves | Destroyed by 5M-7BS(R) with Subdweller Laser Last Messages --------------- Flight Unit fries itself beyond repair. Autobeam Turret suffers critical hit (Destroy). Autobeam Turret knocked back. Autobeam Turret destroyed. Sub. Monowheel shoots sparks and powers down. HV Slug penetrates Twisted Machinery. K3-0DT(R) suffers critical hit (Destroy). K3-0DT(R) destroyed. HV Slug penetrates FI-QOE(g). FI-QOE(g) suffers critical hit (Destroy). FI-QOE(g) destroyed. RS-2P4(h) destroyed. 2Q-41X(R) suffers critical hit (Burn). 2Q-41X(R) heat spikes uncontrollably. 2Q-41X(R) overheating. 2Q-41X(R) destroyed. Acquired 10 matter. Acquired Myomer Leg. Sub. Monowheel functionality restored. WD-1OQ(g) destroyed. Map ----- +----------------------------------------------------+ | ???????????????????????????????????????????????? | | ???????????????????????????????????????????????? | | ???????????????????????????????????????????????? | | ???????????????????????????????????????????????? | | ???????????????????????????????????????????????? | | ???????????????????????????????????????????????? | | ???????????????????????????????????????????????? | | ???????????????????????????????????????????????? | | ???????????????????????????????????????????????? | | ???????????????????????????????????????????????? | | ???????????????????????????????????????????????? | | ???????????????????????????????????????????????? | | ???????????????????????????????????????????????? | | ???????????????????????????????????????????????? | | ???????????????????????????????????????????????? | | ???????????????????????????????????????????????? | | ???????????????????????????????????????????????? | | ???????????????????????????????????????????????? | | ???????????????????????????????????????????????? | | ?????????????????#?????????????????????????????? | | ?????????????????# ????????????????????????????? | | ?????????????????# #######????????????????????? | | ????????????????## # # ?????????????????????? | | ????????????????# ##????????????????????? | | ?????????????????? R #????????????????????? | | ?????????????????????#R@ #?????????????????????? | | ?????????????????????## *#?????????????????????? | | ??????????????????????##%##????????????????????# | | ???????????????????#### #?##????????????????## | | ??????????????????## ## ;# #??????????? ####" | | ?????????????????## ### #??????????# " "" | | ?????????????????# ### ##????????## " "" | | ?????????????????# #?? ?????"" " | | ?????????????????# ####?? ????? "" """" | | ?????????????????## ##????? #?# "" | | ??????????????????## #?????? ""##?# "" | | ???????????????????# ##?????# "#?# "" | | ?????????????????### ##????# #?#" "" | | ????????????????## ## ##?### #?#""" "" | | ????????????????# ## ##? #???#"""##" | | ????????????????# ## ### #????###??#" | | ????????????????# ## ##????????#" | | ???????????????## ##???????# | | ???????????????# ## ##### ##?????## | | ???????????????## ####???## ###?### | | ???????????????## ##????## ### | | ??????????????## #????# ## | | ??????????????# #????# ## | | ??????????????# ## #????# ### | | ??????????????###?## ##???# ### | +----------------------------------------------------+ Best States ------------- Heat Dissipation 39 Energy Generation 18 Energy Capacity 250 Matter Stores 300 Matter Capacity 300 Sight Range 16 Terrain Scan Range 16 Terrain Scan Density 10 Evasion (%) 55 Item Schematics ----------------- None Robot Schematics ------------------ None Fabricated ------------ Nothing Alien Tech Used ----------------- None Achievements -------------- None Challenges ------------ None Game ------ Seed AdvancedTransportNanosword Manual? 0 Play Time 00:37:03 Cumulative 6.6 hours Start 2024.04.06 @ 03:24:24 End 2024.04.06 @ 03:59:17 Sessions 1 Manual Loads 0 Difficulty Rogue Special Mode None Game No. 14 Rogue 14 Adventurer 0 Explorer 0 Win Type - Total 0 Types 0/0/0/0/0/0/0/0/0 Lore% 8 Gallery% 11 Achievement% 12 Wizard Run 0 Options --------- Layout 1 ASCII 0 Keyboard 0 Movement Numpad Keybinds 0 Fullscreen 1 Font 32/SmallcapsGlow Map View 50x35 Zoom Use 0% Tactical HUD 0 Map Filters NONE Filters NONE Steam 1 RUN: a2611945-770e-468a-a3c6-ede54b726c7d